[Event "*** Titled Tuesday 3|2 Blitz"]
[Site "Chess.com"]
[Date "2016.04.05"]
[Round "1"]
[White "pKiLz5Rn9b"]
[Black "Pomoc"]
[Result "1-0"]
[WhiteElo "2503"]
[BlackElo "2148"]
[TimeControl "180+2"]
[EndTime "11:08:47 PDT"]
[Termination "pKiLz5Rn9b won by checkmate"]

1. e4 {[%clk 0:03:01.9]} 1... c5 {[%clk 0:03:00.2]} 2. c3 {[%clk 0:03:01.6]}
2... Nf6 {[%clk 0:02:59.4]} 3. e5 {[%clk 0:03:02.1]} 3... Nd5 {[%clk 0:03:00]}
4. d4 {[%clk 0:03:03.8]} 4... cxd4 {[%clk 0:03:01]} 5. cxd4 {[%clk 0:03:05.7]}
5... e6 {[%clk 0:03:02.1]} 6. Nf3 {[%clk 0:03:06.1]} 6... d6 {[%clk 0:03:03.1]}
7. Bc4 {[%clk 0:03:04.5]} 7... Nb6 {[%clk 0:03:03.4]} 8. Bb3 {[%clk 0:03:01.8]}
8... dxe5 {[%clk 0:03:03.6]} 9. Nxe5 {[%clk 0:03:01.4]} 9... Nc6 {[%clk
0:03:03.8]} 10. Nxc6 {[%clk 0:03:00.6]} 10... bxc6 {[%clk 0:03:05.7]} 11. O-O
{[%clk 0:03:01.7]} 11... Be7 {[%clk 0:03:01.2]} 12. Nc3 {[%clk 0:03:00.9]} 12...
O-O {[%clk 0:02:58.1]} 13. Bc2 {[%clk 0:03:00.4]} 13... Nd5 {[%clk 0:02:54.3]}
14. Re1 {[%clk 0:02:45.4]} 14... g6 {[%clk 0:02:41.3]} 15. Bh6 {[%clk
0:02:44.6]} 15... Re8 {[%clk 0:02:41.1]} 16. Qf3 {[%clk 0:02:46.3]} 16... Bg5
{[%clk 0:02:29.4]} 17. Bxg5 {[%clk 0:02:44.3]} 17... Qxg5 {[%clk 0:02:31.3]} 18.
Ne4 {[%clk 0:02:43.6]} 18... Qe7 {[%clk 0:02:27.3]} 19. Bb3 {[%clk 0:02:42.2]}
19... Kg7 {[%clk 0:02:24]} 20. Rac1 {[%clk 0:02:43.7]} 20... Bb7 {[%clk
0:02:18.7]} 21. Qg3 {[%clk 0:02:42.9]} 21... Rad8 {[%clk 0:02:03.3]} 22. Nc5
{[%clk 0:02:42.5]} 22... Ba8 {[%clk 0:01:58.9]} 23. Nd3 {[%clk 0:02:29.8]} 23...
Qf6 {[%clk 0:01:41]} 24. Qe5 {[%clk 0:02:30.7]} 24... Nb6 {[%clk 0:01:16.4]} 25.
Qxf6+ {[%clk 0:02:11.9]} 25... Kxf6 {[%clk 0:01:18.3]} 26. Re4 {[%clk
0:02:12.1]} 26... Kg7 {[%clk 0:01:09.8]} 27. Nc5 {[%clk 0:02:12.8]} 27... a5
{[%clk 0:01:01.2]} 28. Kf1 {[%clk 0:01:52.6]} 28... Rd6 {[%clk 0:01:00.2]} 29.
Ke2 {[%clk 0:01:49.8]} 29... Red8 {[%clk 0:00:59.7]} 30. Ke3 {[%clk 0:01:49.8]}
30... Nd5+ {[%clk 0:00:57.7]} 31. Bxd5 {[%clk 0:01:50.9]} 31... Rxd5 {[%clk
0:00:49.8]} 32. Rc4 {[%clk 0:01:52.1]} 32... Rb8 {[%clk 0:00:33.6]} 33. b3
{[%clk 0:01:50.2]} 33... Rb4 {[%clk 0:00:32.7]} 34. Rxb4 {[%clk 0:01:51.5]}
34... axb4 {[%clk 0:00:34.3]} 35. Kd3 {[%clk 0:01:52.4]} 35... Rd8 {[%clk
0:00:31.7]} 36. Kc4 {[%clk 0:01:53.4]} 36... Rb8 {[%clk 0:00:32.2]} 37. Re1
{[%clk 0:01:50.9]} 37... Bb7 {[%clk 0:00:22.4]} 38. Kxb4 {[%clk 0:01:51]} 38...
Ba6+ {[%clk 0:00:21.1]} 39. Kc3 {[%clk 0:01:52.2]} 39... Bc8 {[%clk 0:00:20.8]}
40. a4 {[%clk 0:01:53.7]} 40... Ra8 {[%clk 0:00:20.9]} 41. Ra1 {[%clk
0:01:54.5]} 41... Kf6 {[%clk 0:00:19.7]} 42. a5 {[%clk 0:01:55.7]} 42... e5
{[%clk 0:00:20.4]} 43. dxe5+ {[%clk 0:01:56.5]} 43... Kxe5 {[%clk 0:00:22.3]}
44. b4 {[%clk 0:01:58.4]} 44... Kd6 {[%clk 0:00:22.4]} 45. Rd1+ {[%clk
0:01:59.2]} 45... Kc7 {[%clk 0:00:23.3]} 46. Re1 {[%clk 0:02:00.8]} 46... Kd6
{[%clk 0:00:22.8]} 47. Re8 {[%clk 0:02:02]} 47... h5 {[%clk 0:00:15.3]} 48. Rh8
{[%clk 0:02:02.7]} 48... Ke7 {[%clk 0:00:10.9]} 49. f4 {[%clk 0:02:03.6]} 49...
Bb7 {[%clk 0:00:10.8]} 50. Rxa8 {[%clk 0:02:02.2]} 50... Bxa8 {[%clk 0:00:12.7]}
51. Kd4 {[%clk 0:02:04.1]} 51... Kd6 {[%clk 0:00:13.1]} 52. Ne4+ {[%clk
0:02:04.1]} 52... Kc7 {[%clk 0:00:12.5]} 53. Kc5 {[%clk 0:02:05.3]} 53... Bb7
{[%clk 0:00:12.7]} 54. Ng5 {[%clk 0:02:00.6]} 54... f6 {[%clk 0:00:10.8]} 55.
Ne6+ {[%clk 0:02:02]} 55... Kc8 {[%clk 0:00:08.3]} 56. Kb6 {[%clk 0:02:02.9]}
56... c5 {[%clk 0:00:07.6]} 57. bxc5 {[%clk 0:02:01.5]} 57... Bxg2 {[%clk
0:00:07.6]} 58. c6 {[%clk 0:02:03.1]} 58... g5 {[%clk 0:00:06.3]} 59. a6 {[%clk
0:02:04]} 59... gxf4 {[%clk 0:00:05.5]} 60. a7 {[%clk 0:02:05.2]} 60... Bxc6
{[%clk 0:00:04.5]} 61. Kxc6 {[%clk 0:02:07.1]} 61... f3 {[%clk 0:00:04.4]} 62.
a8=R# {[%clk 0:02:07.4]} 1-0

[Event "*** Titled Tuesday 3|2 Blitz"]
[Site "Chess.com"]
[Date "2016.04.05"]
[Round "1"]
[White "chito89"]
[Black "petrpalachev"]
[Result "1-0"]
[WhiteElo "2659"]
[BlackElo "2298"]
[TimeControl "180+2"]
[EndTime "11:09:01 PDT"]
[Termination "chito89 won by resignation"]

1. e4 {[%clk 0:02:14.8]} 1... e6 {[%clk 0:02:59.6]} 2. Qe2 {[%clk 0:02:14.7]}
2... d5 {[%clk 0:03:01.5]} 3. exd5 {[%clk 0:02:15.5]} 3... Qxd5 {[%clk
0:03:03.1]} 4. Nc3 {[%clk 0:02:17]} 4... Qd8 {[%clk 0:03:01.7]} 5. g3 {[%clk
0:02:18.1]} 5... Nf6 {[%clk 0:02:59.3]} 6. Bg2 {[%clk 0:02:19.4]} 6... Be7
{[%clk 0:03:00.8]} 7. Nf3 {[%clk 0:02:20.5]} 7... O-O {[%clk 0:03:02.7]} 8. O-O
{[%clk 0:02:21.5]} 8... c5 {[%clk 0:03:04.3]} 9. Ne5 {[%clk 0:02:20.2]} 9... Nd5
{[%clk 0:02:59.4]} 10. d3 {[%clk 0:02:17.5]} 10... Nxc3 {[%clk 0:02:48.7]} 11.
bxc3 {[%clk 0:02:19.4]} 11... Nd7 {[%clk 0:02:49.1]} 12. Nxd7 {[%clk 0:02:10.2]}
12... Qxd7 {[%clk 0:02:48.7]} 13. c4 {[%clk 0:02:10.4]} 13... Rb8 {[%clk
0:02:45]} 14. Bf4 {[%clk 0:02:10.5]} 14... Bd6 {[%clk 0:02:45.8]} 15. Bxd6
{[%clk 0:02:11.8]} 15... Qxd6 {[%clk 0:02:47.7]} 16. a4 {[%clk 0:02:13.2]} 16...
Bd7 {[%clk 0:02:47.4]} 17. a5 {[%clk 0:02:08.8]} 17... Bc6 {[%clk 0:02:48.6]}
18. Rfb1 {[%clk 0:02:09.2]} 18... Bxg2 {[%clk 0:02:43.3]} 19. Kxg2 {[%clk
0:02:10.7]} 19... Qc6+ {[%clk 0:02:45.2]} 20. Qf3 {[%clk 0:02:10.5]} 20... Rfc8
{[%clk 0:02:44.7]} 21. Rb5 {[%clk 0:02:09.8]} 21... g6 {[%clk 0:02:32.7]} 22.
Rab1 {[%clk 0:02:10.3]} 22... Qxf3+ {[%clk 0:02:32.8]} 23. Kxf3 {[%clk
0:02:11.8]} 23... Rc7 {[%clk 0:02:34.7]} 24. Ke4 {[%clk 0:02:13]} 24... Kf8
{[%clk 0:02:35]} 25. h4 {[%clk 0:02:07.5]} 25... h5 {[%clk 0:02:34.9]} 26. f3
{[%clk 0:02:07.3]} 26... Ke7 {[%clk 0:02:29.1]} 27. g4 {[%clk 0:02:05.5]} 27...
f6 {[%clk 0:01:59.3]} 28. gxh5 {[%clk 0:02:02.9]} 28... gxh5 {[%clk 0:02:01.2]}
29. c3 {[%clk 0:02:01.8]} 29... Kd6 {[%clk 0:01:46.3]} 30. Rg1 {[%clk
0:02:00.8]} 30... Rf7 {[%clk 0:00:33.1]} 31. Rg6 {[%clk 0:01:59.6]} 31... b6
{[%clk 0:00:27.6]} 32. Rh6 {[%clk 0:01:56.1]} 32... Kc6 {[%clk 0:00:28.5]} 33.
d4 {[%clk 0:01:48.6]} 33... cxd4 {[%clk 0:00:12.5]} 34. cxd4 {[%clk 0:01:49.5]}
34... Rd8 {[%clk 0:00:10.1]} 35. axb6 {[%clk 0:01:44.6]} 35... axb6 {[%clk
0:00:10.6]} 36. Rhxh5 {[%clk 0:01:44.2]} 36... Rfd7 {[%clk 0:00:10.9]} 37. d5+
{[%clk 0:01:45.2]} 37... exd5+ {[%clk 0:00:11.8]} 38. Rbxd5 {[%clk 0:01:44.4]}
38... Re8+ {[%clk 0:00:11.1]} 39. Kd4 {[%clk 0:01:45]} 39... Rde7 {[%clk
0:00:05.7]} 40. Rhf5 {[%clk 0:01:45.7]} 40... Re6 {[%clk 0:00:07]} 41. h5 {[%clk
0:01:43.2]} 41... Rg8 {[%clk 0:00:07.7]} 42. Rf4 {[%clk 0:01:24.1]} 42... Rg1
{[%clk 0:00:08]} 43. Re4 {[%clk 0:01:24.1]} 43... Rd1+ {[%clk 0:00:09.1]} 44.
Kc3 {[%clk 0:01:25.3]} 44... Rxe4 {[%clk 0:00:07.9]} 45. fxe4 {[%clk 0:01:23.5]}
45... Re1 {[%clk 0:00:09.1]} 46. Kd3 {[%clk 0:01:21.2]} 46... Rd1+ {[%clk
0:00:10.2]} 47. Ke3 {[%clk 0:01:22.3]} 47... Rc1 {[%clk 0:00:10.4]} 48. Rf5
{[%clk 0:01:22.6]} 48... Rxc4 {[%clk 0:00:10.9]} 49. Rxf6+ {[%clk 0:01:23.3]}
49... Kc5 {[%clk 0:00:11.6]} 50. Rf5+ {[%clk 0:01:23.5]} 50... Kd6 {[%clk
0:00:10.9]} 51. Kf4 {[%clk 0:01:23.1]} 51... Rc1 {[%clk 0:00:10.3]} 52. h6
{[%clk 0:01:23.5]} 52... Rh1 {[%clk 0:00:10.5]} 53. Kg5 {[%clk 0:01:25]} 53...
Ke6 {[%clk 0:00:03.7]} 54. Kg6 {[%clk 0:01:25.9]} 54... Rg1+ {[%clk 0:00:03.9]}
55. Rg5 {[%clk 0:01:27.1]} 55... Rxg5+ {[%clk 0:00:03.2]} 56. Kxg5 {[%clk
0:01:28.2]} 56... Kf7 {[%clk 0:00:05.1]} 57. e5 {[%clk 0:01:29.4]} 57... b5
{[%clk 0:00:06.5]} 58. e6+ {[%clk 0:01:30.6]} 1-0

[Event "*** Titled Tuesday 3|2 Blitz"]
[Site "Chess.com"]
[Date "2016.04.05"]
[Round "1"]
[White "Krutoy123"]
[Black "ShimanovAlex"]
[Result "0-1"]
[WhiteElo "2328"]
[BlackElo "2622"]
[TimeControl "180+2"]
[EndTime "11:09:10 PDT"]
[Termination "ShimanovAlex won on time"]

1. e4 {[%clk 0:02:56.3]} 1... Nf6 {[%clk 0:02:59.3]} 2. e5 {[%clk 0:02:56.4]}
2... Nd5 {[%clk 0:03:00]} 3. d4 {[%clk 0:02:58]} 3... d6 {[%clk 0:03:00.9]} 4.
Nf3 {[%clk 0:02:57.8]} 4... dxe5 {[%clk 0:03:02.1]} 5. Nxe5 {[%clk 0:02:57.5]}
5... c6 {[%clk 0:03:03.7]} 6. Nf3 {[%clk 0:02:57]} 6... Bg4 {[%clk 0:03:02.9]}
7. Be2 {[%clk 0:02:58.1]} 7... e6 {[%clk 0:03:03.7]} 8. h3 {[%clk 0:02:58.6]}
8... Bh5 {[%clk 0:03:02.9]} 9. c4 {[%clk 0:02:59.2]} 9... Nf6 {[%clk 0:03:03.2]}
10. O-O {[%clk 0:02:59.7]} 10... Bd6 {[%clk 0:03:03.7]} 11. b3 {[%clk
0:02:59.3]} 11... Nbd7 {[%clk 0:03:04.3]} 12. Bb2 {[%clk 0:03:00.6]} 12... Qc7
{[%clk 0:03:05.5]} 13. Nc3 {[%clk 0:02:58.8]} 13... O-O {[%clk 0:03:05.5]} 14.
Qc2 {[%clk 0:02:57]} 14... Rfe8 {[%clk 0:03:03.5]} 15. Rad1 {[%clk 0:02:57.4]}
15... Rad8 {[%clk 0:03:03.4]} 16. Ng5 {[%clk 0:02:48.1]} 16... Bg6 {[%clk
0:03:00.3]} 17. Bd3 {[%clk 0:02:49.2]} 17... Bf4 {[%clk 0:03:01]} 18. Bxg6
{[%clk 0:02:46.7]} 18... hxg6 {[%clk 0:03:01.6]} 19. Nge4 {[%clk 0:02:48]} 19...
a6 {[%clk 0:02:55.8]} 20. a4 {[%clk 0:02:44.2]} 20... Bd6 {[%clk 0:02:50.9]} 21.
Nxd6 {[%clk 0:02:40.4]} 21... Qxd6 {[%clk 0:02:51.6]} 22. Rd2 {[%clk 0:02:39.8]}
22... Qf4 {[%clk 0:02:48.9]} 23. Rfd1 {[%clk 0:02:38.7]} 23... Qf5 {[%clk
0:02:49.4]} 24. Qxf5 {[%clk 0:02:37.4]} 24... gxf5 {[%clk 0:02:50]} 25. f3
{[%clk 0:02:38.5]} 25... f4 {[%clk 0:02:49.1]} 26. Ne2 {[%clk 0:02:29.2]} 26...
g5 {[%clk 0:02:49.7]} 27. h4 {[%clk 0:02:28.4]} 27... Nh5 {[%clk 0:02:48]} 28.
hxg5 {[%clk 0:02:28.7]} 28... Kh7 {[%clk 0:02:49.1]} 29. Kf2 {[%clk 0:02:29.5]}
29... Kg6 {[%clk 0:02:49.6]} 30. Rd3 {[%clk 0:02:29.6]} 30... Kxg5 {[%clk
0:02:48.9]} 31. Bc1 {[%clk 0:02:30.8]} 31... Kf5 {[%clk 0:02:49.5]} 32. Rh1
{[%clk 0:02:29.8]} 32... Ndf6 {[%clk 0:02:49.6]} 33. a5 {[%clk 0:02:00]} 33...
e5 {[%clk 0:02:46.8]} 34. Rdd1 {[%clk 0:02:00.9]} 34... e4 {[%clk 0:02:44.8]}
35. fxe4+ {[%clk 0:01:56.1]} 35... Nxe4+ {[%clk 0:02:45.8]} 36. Kf3 {[%clk
0:01:56.4]} 36... Ng5+ {[%clk 0:02:41.3]} 37. Kf2 {[%clk 0:01:57.4]} 37... Rxe2+
{[%clk 0:02:39.2]} 38. Kxe2 {[%clk 0:01:59.3]} 38... Ng3+ {[%clk 0:02:40.5]} 39.
Kf2 {[%clk 0:01:59.9]} 39... Nxh1+ {[%clk 0:02:41.1]} 40. Rxh1 {[%clk
0:02:00.2]} 40... Rxd4 {[%clk 0:02:42.7]} 41. Ke2 {[%clk 0:01:46.6]} 41... Ne4
{[%clk 0:02:37.5]} 42. Rh4 {[%clk 0:01:38.3]} 42... Nc3+ {[%clk 0:02:35.4]} 43.
Kf3 {[%clk 0:01:32.5]} 43... Rd3+ {[%clk 0:02:16.9]} 44. Kf2 {[%clk 0:01:32.5]}
44... Ne4+ {[%clk 0:02:17]} 45. Ke2 {[%clk 0:01:32.7]} 45... Rxb3 {[%clk
0:02:15.2]} 46. Rxf4+ {[%clk 0:01:33.3]} 46... Ke5 {[%clk 0:02:16.3]} 47. Rxf7
{[%clk 0:01:34.1]} 47... Nd6 {[%clk 0:02:15.1]} 48. Rf8 {[%clk 0:01:17.4]} 48...
Nxc4 {[%clk 0:02:15.3]} 49. g4 {[%clk 0:01:18.6]} 49... Rc3 {[%clk 0:02:11.6]}
50. Bf4+ {[%clk 0:01:17.5]} 50... Ke4 {[%clk 0:02:12.2]} 51. g5 {[%clk
0:01:00.4]} 51... Rc2+ {[%clk 0:02:11.7]} 52. Kd1 {[%clk 0:01:01.7]} 52... Rg2
{[%clk 0:02:12.1]} 53. Bc1 {[%clk 0:00:59.3]} 53... Nxa5 {[%clk 0:02:08.5]} 54.
Re8+ {[%clk 0:00:59.2]} 54... Kd5 {[%clk 0:02:07.5]} 55. Rd8+ {[%clk 0:01:00]}
55... Ke6 {[%clk 0:02:07.7]} 56. Re8+ {[%clk 0:00:59.8]} 56... Kd7 {[%clk
0:02:08.2]} 57. Rg8 {[%clk 0:00:55.3]} 57... Ke7 {[%clk 0:01:43.3]} 58. Rg7+
{[%clk 0:00:55.4]} 58... Ke6 {[%clk 0:01:44.5]} 59. Rc7 {[%clk 0:00:46.3]} 59...
b5 {[%clk 0:01:39.8]} 60. Ra7 {[%clk 0:00:35.3]} 60... Nc4 {[%clk 0:01:26.2]}
0-1

[Event "*** Titled Tuesday 3|2 Blitz"]
[Site "Chess.com"]
[Date "2016.04.05"]
[Round "1"]
[White "GMHess"]
[Black "Tobi-Wan-Kenobi"]
[Result "1-0"]
[WhiteElo "2605"]
[BlackElo "2300"]
[TimeControl "180+2"]
[EndTime "11:09:22 PDT"]
[Termination "GMHess won by resignation"]

1. b3 {[%clk 0:03:01.9]} 1... e5 {[%clk 0:02:56.2]} 2. Bb2 {[%clk 0:03:03.8]}
2... Nc6 {[%clk 0:02:54.2]} 3. e3 {[%clk 0:03:04.4]} 3... Nf6 {[%clk 0:02:54.7]}
4. Bb5 {[%clk 0:03:05.1]} 4... Bd6 {[%clk 0:02:54.6]} 5. Ne2 {[%clk 0:03:06.1]}
5... O-O {[%clk 0:02:52.8]} 6. Ng3 {[%clk 0:03:06.9]} 6... Re8 {[%clk
0:02:52.8]} 7. e4 {[%clk 0:03:02.9]} 7... a6 {[%clk 0:02:51.3]} 8. Bxc6 {[%clk
0:03:03.2]} 8... dxc6 {[%clk 0:02:51.4]} 9. h3 {[%clk 0:03:04.3]} 9... c5 {[%clk
0:02:49.7]} 10. d3 {[%clk 0:03:04.9]} 10... Nd7 {[%clk 0:02:40.2]} 11. Nd2
{[%clk 0:03:02]} 11... Nf8 {[%clk 0:02:40.9]} 12. Nc4 {[%clk 0:02:49.3]} 12...
Ng6 {[%clk 0:02:30.8]} 13. Qd2 {[%clk 0:02:32.3]} 13... Nf4 {[%clk 0:02:27.6]}
14. Rh2 {[%clk 0:02:25.3]} 14... f6 {[%clk 0:02:23.4]} 15. O-O-O {[%clk
0:02:24.5]} 15... b5 {[%clk 0:02:21.5]} 16. Ne3 {[%clk 0:02:22.8]} 16... a5
{[%clk 0:02:21.6]} 17. Ngf5 {[%clk 0:02:04.8]} 17... a4 {[%clk 0:02:20.3]} 18.
g3 {[%clk 0:02:01.9]} 18... Ne6 {[%clk 0:02:18.8]} 19. f4 {[%clk 0:01:50.3]}
19... axb3 {[%clk 0:02:07.9]} 20. axb3 {[%clk 0:01:50.9]} 20... Nd4 {[%clk
0:02:07.9]} 21. Rf2 {[%clk 0:01:33.4]} 21... Be6 {[%clk 0:02:06.3]} 22. fxe5
{[%clk 0:01:25.4]} 22... Bxe5 {[%clk 0:02:05.1]} 23. Ng4 {[%clk 0:01:26.3]}
23... Bxf5 {[%clk 0:01:27.9]} 24. exf5 {[%clk 0:01:11.9]} 24... Ra2 {[%clk
0:01:20]} 25. Nxe5 {[%clk 0:01:12.5]} 25... Rxe5 {[%clk 0:00:59.6]} 26. Re1
{[%clk 0:01:08.4]} 26... Qd5 {[%clk 0:00:47]} 27. Kb1 {[%clk 0:00:56.3]} 27...
Ra8 {[%clk 0:00:39.5]} 28. Rxe5 {[%clk 0:00:53.7]} 28... Qxe5 {[%clk 0:00:40.5]}
29. Rf4 {[%clk 0:00:49.5]} 29... b4 {[%clk 0:00:33.2]} 30. g4 {[%clk 0:00:29]}
30... Qd5 {[%clk 0:00:29.5]} 31. Re4 {[%clk 0:00:24.8]} 31... Nb5 {[%clk
0:00:28.2]} 32. Qe3 {[%clk 0:00:22.3]} 32... Nd6 {[%clk 0:00:21.1]} 33. Re7
{[%clk 0:00:17.9]} 33... Qh1+ {[%clk 0:00:20.7]} 34. Bc1 {[%clk 0:00:16.7]}
34... Qd5 {[%clk 0:00:16.2]} 35. Qe6+ {[%clk 0:00:10.5]} 35... Qxe6 {[%clk
0:00:17]} 36. fxe6 {[%clk 0:00:12.4]} 36... Nb5 {[%clk 0:00:16.9]} 37. Bb2
{[%clk 0:00:12.3]} 37... h6 {[%clk 0:00:14.8]} 38. h4 {[%clk 0:00:13.4]} 38...
Kf8 {[%clk 0:00:15]} 39. Rf7+ {[%clk 0:00:13.9]} 39... Kg8 {[%clk 0:00:16.3]}
40. g5 {[%clk 0:00:15.2]} 40... hxg5 {[%clk 0:00:15.4]} 41. hxg5 {[%clk
0:00:16.2]} 41... Ra6 {[%clk 0:00:15.6]} 42. gxf6 {[%clk 0:00:16.4]} 42... gxf6
{[%clk 0:00:16.2]} 43. Rxf6 {[%clk 0:00:18.2]} 43... Ra8 {[%clk 0:00:12]} 44.
Rh6 {[%clk 0:00:19.1]} 44... Nc3+ {[%clk 0:00:11.4]} 45. Bxc3 {[%clk 0:00:19.8]}
45... bxc3 {[%clk 0:00:13.3]} 46. Rh5 {[%clk 0:00:21.1]} 46... Ra5 {[%clk
0:00:11]} 47. Rf5 {[%clk 0:00:20.5]} 47... Kg7 {[%clk 0:00:08.2]} 48. e7 {[%clk
0:00:21.4]} 1-0

[Event "*** Titled Tuesday 3|2 Blitz"]
[Site "Chess.com"]
[Date "2016.04.05"]
[Round "1"]
[White "Anton_Demchenko"]
[Black "underdogchss"]
[Result "1/2-1/2"]
[WhiteElo "2661"]
[BlackElo "2365"]
[TimeControl "180+2"]
[EndTime "11:09:57 PDT"]
[Termination "Game drawn by agreement"]

1. e4 {[%clk 0:02:59.4]} 1... e5 {[%clk 0:03:00.7]} 2. Nf3 {[%clk 0:03:00.1]}
2... Nc6 {[%clk 0:03:01.9]} 3. Bc4 {[%clk 0:03:00.8]} 3... Bc5 {[%clk
0:03:02.4]} 4. d3 {[%clk 0:03:01.2]} 4... Nf6 {[%clk 0:03:02.4]} 5. Bg5 {[%clk
0:02:59.2]} 5... h6 {[%clk 0:02:55.3]} 6. Bh4 {[%clk 0:02:59.4]} 6... d6 {[%clk
0:02:52.5]} 7. c3 {[%clk 0:02:59.4]} 7... Bg4 {[%clk 0:02:50.7]} 8. Nbd2 {[%clk
0:02:59.5]} 8... g5 {[%clk 0:02:49.3]} 9. Bg3 {[%clk 0:03:00.4]} 9... Nh5 {[%clk
0:02:50.3]} 10. h3 {[%clk 0:02:51.4]} 10... Bxf3 {[%clk 0:02:43.7]} 11. Qxf3
{[%clk 0:02:45.6]} 11... Nf4 {[%clk 0:02:41.4]} 12. Bxf4 {[%clk 0:02:37]} 12...
gxf4 {[%clk 0:02:38.5]} 13. O-O-O {[%clk 0:02:31.9]} 13... Qg5 {[%clk
0:02:31.5]} 14. Bb5 {[%clk 0:02:30.4]} 14... a6 {[%clk 0:02:31.3]} 15. Bxc6+
{[%clk 0:02:28]} 15... bxc6 {[%clk 0:02:32.6]} 16. h4 {[%clk 0:02:17.9]} 16...
Qe7 {[%clk 0:02:23.4]} 17. g3 {[%clk 0:01:57.8]} 17... fxg3 {[%clk 0:02:20.1]}
18. fxg3 {[%clk 0:01:58.6]} 18... O-O-O {[%clk 0:02:13.9]} 19. Rdf1 {[%clk
0:01:53.8]} 19... Rhg8 {[%clk 0:02:09.4]} 20. Rh2 {[%clk 0:01:49.5]} 20... Rdf8
{[%clk 0:01:55.2]} 21. Rg2 {[%clk 0:01:49.2]} 21... Rg6 {[%clk 0:01:54.5]} 22.
Qf5+ {[%clk 0:01:39.3]} 22... Kb7 {[%clk 0:01:53.5]} 23. Kc2 {[%clk 0:01:36.1]}
23... Rfg8 {[%clk 0:01:48]} 24. Qxf7 {[%clk 0:01:34.2]} 24... Qxf7 {[%clk
0:01:48.7]} 25. Rxf7 {[%clk 0:01:36.1]} 25... Rxg3 {[%clk 0:01:49.9]} 26. Rxg3
{[%clk 0:01:37.5]} 26... Rxg3 {[%clk 0:01:51.6]} 27. Rf6 {[%clk 0:01:32.6]}
27... Rg2 {[%clk 0:01:48.8]} 28. Kd1 {[%clk 0:01:33.7]} 28... Be3 {[%clk
0:01:45.4]} 29. Nc4 {[%clk 0:01:32.2]} 29... Bf4 {[%clk 0:01:46]} 30. b4 {[%clk
0:01:28.2]} 30... Rxa2 {[%clk 0:01:31.1]} 31. Rf7 {[%clk 0:01:29.6]} 31... Kc8
{[%clk 0:01:30.4]} 32. Ke1 {[%clk 0:01:10.7]} 32... Rh2 {[%clk 0:01:29.9]} 33.
Na5 {[%clk 0:01:05.8]} 33... Bd2+ {[%clk 0:01:24]} 34. Kf1 {[%clk 0:01:06.6]}
34... Bxc3 {[%clk 0:01:24.3]} 35. Nxc6 {[%clk 0:01:07.7]} 35... Rxh4 {[%clk
0:01:23.9]} 36. Ne7+ {[%clk 0:01:09]} 36... Kd8 {[%clk 0:01:19.3]} 37. Nd5
{[%clk 0:01:09.3]} 37... Bd4 {[%clk 0:01:14.7]} 38. Rxc7 {[%clk 0:01:06.5]}
38... Rh3 {[%clk 0:01:03.2]} 39. Ke2 {[%clk 0:01:06.4]} 39... Rh2+ {[%clk
0:01:02.8]} 40. Ke1 {[%clk 0:01:03.9]} 40... Rh1+ {[%clk 0:01:00.5]} 41. Kd2
{[%clk 0:01:04.9]} 41... Rh2+ {[%clk 0:01:01.4]} 42. Kd1 {[%clk 0:01:05.7]}
42... Rb2 {[%clk 0:00:58.9]} 43. Rc6 {[%clk 0:01:04.9]} 43... Kd7 {[%clk
0:00:56]} 44. Rxa6 {[%clk 0:01:05.8]} 44... h5 {[%clk 0:00:57.4]} 45. Ra8 {[%clk
0:01:06.9]} 45... h4 {[%clk 0:00:57.5]} 46. Rh8 {[%clk 0:01:07.7]} 46... Bf2
{[%clk 0:00:57.8]} 47. Rh7+ {[%clk 0:01:08.8]} 47... Kd8 {[%clk 0:00:58.1]} 48.
Kc1 {[%clk 0:01:09.2]} 48... Ra2 {[%clk 0:00:57.4]} 49. b5 {[%clk 0:01:09.3]}
49... Ra3 {[%clk 0:00:56.8]} 50. Kc2 {[%clk 0:01:08.6]} 50... Ra2+ {[%clk
0:00:53.5]} 51. Kb3 {[%clk 0:01:09.8]} 51... Ra1 {[%clk 0:00:54.2]} 52. Kb2
{[%clk 0:01:09.4]} 52... Bd4+ {[%clk 0:00:54.3]} 53. Kc2 {[%clk 0:01:09]} 53...
Bf2 {[%clk 0:00:55.2]} 54. b6 {[%clk 0:01:07.9]} 54... Bxb6 {[%clk 0:00:43.8]}
55. Nxb6 {[%clk 0:01:09]} 55... Rh1 {[%clk 0:00:45.2]} 56. Nc4 {[%clk
0:01:07.5]} 56... h3 {[%clk 0:00:44.2]} 57. Nd2 {[%clk 0:00:57.7]} 57... Rh2
{[%clk 0:00:37.9]} 58. Kc3 {[%clk 0:00:57.9]} 58... Ke8 {[%clk 0:00:37.6]} 59.
Nf3 {[%clk 0:00:58.3]} 59... Rh1 {[%clk 0:00:37.6]} 60. Ng5 {[%clk 0:00:59.2]}
60... h2 {[%clk 0:00:37.7]} 61. Nf3 {[%clk 0:00:43.9]} 61... Rc1+ {[%clk
0:00:38.4]} 62. Kb4 {[%clk 0:00:41.7]} 62... h1=Q {[%clk 0:00:38.7]} 63. Rxh1
{[%clk 0:00:43.4]} 63... Rxh1 {[%clk 0:00:39]} 64. Kc4 {[%clk 0:00:45.3]} 64...
Rc1+ {[%clk 0:00:39.7]} 65. Kd5 {[%clk 0:00:46.2]} 65... Rc3 {[%clk 0:00:40.7]}
1/2-1/2